bitfinex-derivatives/quotes_SOLF0:USTF0_20250522
["timestamp","ask_amount","ask_price","bid_price","bid_amount"]
[1747906084196,5.554,180.02,180.01,3.59313002]
[1747906085296,0.0382791,180.03,180.02,5.5539]
[1747906087102,0.0382791,180.03,180.02,9.14264527]
[1747906088604,401.58,180.11,180.02,3.58874527]
[1747906088904,137.58,180.11,180.02,3.58874527]
[1747906089489,0.03590555,180.08,180.02,3.58874527]
[1747906089702,0.03590555,180.08,180.05,0.03561217]
[1747906089905,5.5527,180.06,180.05,0.03561217]
[1747906097612,5.5527,180.06,180.05,1.217e-05]
[1747906100918,13.6342159,180.21,180.05,248.70001217]
[1747906101215,13.6342159,180.21,180.14,7.00812367]
[1747906101414,13.6342159,180.21,180.15,243.14]
[1747906101812,0.03833153,180.2,180.16,0.03972527]
[1747906102019,0.03833153,180.2,180.18,5.5487]
[1747906102213,0.03833153,180.2,180.16,0.03972527]
[1747906102415,0.03833153,180.2,180.18,5.5487]
[1747906102715,0.03833153,180.2,180.16,0.03972527]
[1747906102914,122.19524431,180.24,180.16,0.03972527]
[1747906102915,17.04276987,180.29,180.17,253.75610421]
[1747906103314,17.04276987,180.29,180.21,7.00812367]
[1747906103504,17.04276987,180.29,180.28,5.5459]
[1747906103818,17.04276987,180.29,180.27,105.52]
[1747906104816,17.04276987,180.29,180.26,0.03813616]
[1747906105514,5.5462,180.27,180.26,0.03813616]
[1747906112525,0.03691191,180.3,180.26,0.03813616]
[1747906112912,0.03691191,180.3,180.26,137.29813616]
[1747906113212,0.03691191,180.3,180.26,142.84463616]
[1747906113623,5.58231191,180.3,180.26,142.84463616]
[1747906114528,5.5456,180.29,180.26,137.29813616]
[1747906114725,0.03691191,180.3,180.26,105.49813616]
[1747906115226,5.5458,180.29,180.26,105.49813616]
[1747906116524,0.03691191,180.3,180.26,0.03813616]
[1747906116829,5.5458,180.29,180.26,0.03813616]
[1747906117625,5.546,180.28,180.26,0.03813616]
[1747906117929,0.03691191,180.3,180.26,0.03813616]
[1747906119521,5.5458,180.29,180.26,0.03813616]
[1747906119827,0.03691191,180.3,180.26,0.03813616]
[1747906120023,5.5461,180.28,180.26,0.03813616]
[1747906120525,0.03691191,180.3,180.26,0.03813616]
[1747906120721,5.5462,180.27,180.26,0.03813616]
[1747906125332,5.5459,180.28,180.26,0.03813616]
[1747906125836,0.03691191,180.3,180.26,0.03813616]
[1747906126029,5.5462,180.27,180.26,0.03813616]
[1747906126833,0.03691191,180.3,180.26,0.03813616]
[1747906127735,5.5458,180.29,180.26,0.03813616]
[1747906128037,0.03691191,180.3,180.26,0.03813616]
[1747906129137,264.03691191,180.3,180.26,0.03813616]
[1747906129433,5.546,180.28,180.26,0.03813616]
[1747906130132,5.5462,180.27,180.26,0.03813616]
[1747906133243,5.546,180.28,180.26,0.03813616]
[1747906133540,0.03691191,180.3,180.26,0.03813616]
[1747906133746,5.5462,180.27,180.26,0.03813616]
[1747906136746,0.03691191,180.3,180.26,0.03813616]
[1747906139350,0.03691191,180.3,180.28,5.5457]
[1747906140150,5.58221191,180.3,180.27,5.5461]
[1747906140449,0.03691191,180.3,180.27,5.5461]
[1747906140648,5.5461,180.28,180.26,105.43813616]
[1747906140846,0.03691191,180.3,180.26,105.43813616]
[1747906141345,0.03691191,180.3,180.29,5.5456]
[1747906141542,0.03691191,180.3,180.26,105.43813616]
[1747906141950,0.03691191,180.3,180.28,5.5456]
[1747906142250,0.03691191,180.3,180.26,105.43813616]
[1747906142841,0.03691191,180.3,180.27,5.5461]
[1747906143042,0.03691191,180.3,180.28,105.4]
[1747906143755,5.58241191,180.3,180.28,105.4]
[1747906143947,5.58241191,180.3,180.27,5.5461]
[1747906144147,0.03691191,180.3,180.27,105.4]
[1747906144349,5.5458,180.29,180.27,105.4]
[1747906144549,0.03691191,180.3,180.27,105.4]
[1747906144754,0.03691191,180.3,180.27,110.9461]
[1747906145049,5.5456,180.29,180.27,110.9461]
[1747906145240,0.03691191,180.3,180.27,110.9461]
[1747906145443,0.03691191,180.3,180.27,105.4]
[1747906145648,0.03691191,180.3,180.26,5.58453616]
[1747906145649,0.03691191,180.3,180.28,3.67834626]
[1747906146355,5.5456,180.29,180.28,3.67834626]
[1747906147552,5.58231191,180.3,180.28,3.67834626]
[1747906148855,5.5456,180.29,180.28,3.67834626]
[1747906150554,5.546,180.28,180.26,0.03813616]
[1747906150754,0.03691191,180.3,180.26,0.03813616]
[1747906150954,5.5459,180.29,180.26,0.03813616]
[1747906151151,0.03691191,180.3,180.26,0.03813616]
[1747906151757,5.5462,180.27,180.26,0.03813616]
[1747906152057,0.03691191,180.3,180.27,3.6847775]
[1747906152458,5.5459,180.28,180.27,3.6847775]
[1747906154252,142.3659,180.28,180.27,3.6847775]
[1747906155861,5.5462,180.27,180.26,0.03813616]
[1747906159060,136.82,180.28,180.26,0.03813616]
[1747906159865,5.5462,180.27,180.26,0.03813616]
[1747906160962,142.366,180.28,180.26,0.03813616]
[1747906161362,136.82,180.28,180.26,0.03813616]
[1747906162271,5.5462,180.27,180.26,0.03813616]
[1747906162769,5.5462,180.27,180.26,3.72319088]
[1747906165569,5.5462,180.27,180.26,9.088e-05]
[1747906165872,136.82,180.28,180.21,3.83699661]
[1747906166570,0.03855382,180.26,180.23,0.03565219]
[1747906167273,5.5471,180.24,180.23,5.219e-05]
[1747906191496,275.0938,180.25,180.14,5.5502]
[1747906191793,275.0938,180.25,180.13,3.83699661]
[1747906191991,11.0945,180.24,180.13,3.83699661]
[1747906192299,136.44,180.23,180.13,3.83699661]
[1747906192500,0.03854367,180.2,180.16,0.03685229]
[1747906192697,5.5493,180.17,180.16,0.03685229]
[1747906197109,5.5493,180.17,180.16,5.229e-05]
[1747906200609,136.46,180.18,180.17,5.5493]
[1747906200911,136.46,180.18,180.16,5.229e-05]
[1747906200912,0.03854367,180.2,180.16,5.56005229]
[1747906201114,5.5466,180.26,180.17,143.48812367]
[1747906201311,136.48,180.27,180.17,143.48812367]
[1747906201614,142.0263,180.27,180.17,143.48812367]
[1747906201818,136.48,180.27,180.17,143.48812367]
[1747906202116,0.03717603,180.24,180.2,0.04166004]
[1747906202308,5.58437603,180.24,180.2,0.04166004]
[1747906202710,0.03717603,180.24,180.2,0.04166004]
[1747906203319,5.58437603,180.24,180.21,5.5478]
[1747906203816,0.03717603,180.24,180.2,0.04166004]
[1747906204317,0.03717603,180.24,180.22,5.5475]
[1747906205014,0.03717603,180.24,180.21,5.548]
[1747906205208,0.03717603,180.24,180.2,0.04166004]
[1747906205819,5.548,180.21,180.2,0.04166004]
[1747906207818,5.548,180.21,180.2,6.004e-05]
[1747906208710,5.5487,180.19,180.18,7.777e-05]
[1747906208915,141.5087,180.19,180.18,7.777e-05]
[1747906211224,5.549,180.18,180.17,2.195e-05]
[1747906213220,135.96,180.19,180.07,3.83699661]
[1747906213424,399.96,180.19,180.07,3.83699661]
[1747906213622,5.5514,180.11,180.07,9.38929661]
[1747906214024,5.59396266,180.11,180.07,9.42749609]
[1747906214920,5.59396266,180.11,180.08,5.552]
[1747906215825,0.04256266,180.11,180.07,0.03819948]
[1747906216418,5.552,180.08,180.07,0.03819948]
[1747906216627,141.552,180.08,180.07,9.948e-05]
[1747906221219,136.0,180.08,179.96,3.83699661]
[1747906221415,143.00812367,180.08,179.96,3.83699661]
[1747906222029,143.00812367,180.08,179.91,10.84512028]
[1747906222233,0.03605098,180.01,179.98,0.039336]
[1747906222425,5.5548,179.99,179.98,0.039336]
[1747906223926,5.5548,179.99,179.98,3.6e-05]
[1747906231931,264.0,180.0,179.88,5.5581]
[1747906232130,400.12,179.99,179.88,5.5581]
[1747906232332,5.5568,179.93,179.86,136.12]
[1747906232932,0.03941362,179.91,179.88,0.04056071]
[1747906233132,0.03941362,179.91,179.89,5.5578]
[1747906233336,0.03941362,179.91,179.88,0.04056071]
[1747906233633,0.03941362,179.91,179.88,5.59856071]
[1747906234237,5.59681362,179.91,179.88,5.59856071]
[1747906234433,5.59681362,179.91,179.88,0.04056071]
[1747906234631,0.03941362,179.91,179.88,0.04056071]
[1747906235037,5.5576,179.9,179.88,0.04056071]
[1747906235234,0.03941362,179.91,179.88,0.04056071]
[1747906235647,5.5579,179.89,179.88,0.04056071]
[1747906237345,141.2379,179.89,179.88,6.071e-05]
[1747906237647,5.5588,179.86,179.85,43.85597446]
[1747906237848,135.68,179.89,179.78,5.20405981]
[1747906238052,135.68,179.89,179.74,139.51699661]
[1747906238440,135.72,179.89,179.77,7.00812367]
[1747906238745,0.0355592,179.83,179.82,5.5601]
[1747906238940,0.03865455,179.84,179.81,0.03786599]
[1747906239249,0.03865455,179.84,179.83,5.5598]
[1747906241049,0.03865455,179.84,179.83,11.1198]
[1747906241442,0.03865455,179.84,179.83,5.5598]
[1747906246056,5.455e-05,179.84,179.83,5.5598]
[1747906246447,135.72,179.93,179.89,5.5577]
[1747906246651,135.72,179.93,179.81,105.62]
[1747906246955,141.2767,179.93,179.81,105.62]
[1747906247553,0.03978085,179.89,179.85,0.0395883]
[1747906247756,0.03978085,179.89,179.88,5.5582]
[1747906249861,8.085e-05,179.89,179.88,5.5582]
[1747906250158,135.74,179.97,179.85,135.7795883]
[1747906250353,135.74,179.97,179.82,480.3]
[1747906250561,135.74,179.97,179.83,241.34]
[1747906250746,135.74,179.97,179.87,5.5582]
[1747906250953,5.5577,179.9,179.83,241.34]
[1747906251151,5.5577,179.9,179.85,0.03694979]
[1747906251152,0.03776866,179.88,179.85,0.03694979]
[1747906251654,0.03776866,179.88,179.86,5.5588]
[1747906251856,0.03776866,179.88,179.85,0.03694979]
[1747906252356,0.03776866,179.88,179.87,5.5585]
[1747906256756,0.03776866,179.88,179.86,5.5587]
[1747906257154,0.03776866,179.88,179.85,0.03694979]
[1747906257449,0.03776866,179.88,179.87,5.5585]
[1747906257654,0.03776866,179.88,179.85,0.03694979]
[1747906258061,0.03776866,179.88,179.86,5.5587]
[1747906259363,0.03776866,179.88,179.87,3.60958346]
[1747906259861,0.03776866,179.88,179.87,9.16808346]
[1747906263364,135.74,179.97,179.92,5.5567]
[1747906263665,5.556,179.96,179.88,135.38]
[1747906263869,399.38,180.01,179.88,135.38]
[1747906264060,399.38,180.01,179.9,7.00843958]
[1747906264262,0.03630752,179.97,179.96,5.5556]
[1747906265268,135.38,180.09,180.01,5.5542]
[1747906265676,142.38843958,180.09,179.89,3.83699661]
[1747906265872,142.38843958,180.09,179.94,5.5561]
[1747906266159,142.38843958,180.09,179.91,135.38]
[1747906266365,5.5542,180.01,180.0,0.04024429]
[1747906271365,5.5567,179.93,179.92,3.83699661]
[1747906272268,5.5567,179.93,179.92,9.661e-05]
[1747906273369,5.557,179.92,179.91,0.03823455]
[1747906274178,0.04015359,179.94,179.91,0.03823455]
[1747906274474,135.34,180.06,179.95,5.5558]
[1747906274675,5.5544,180.01,179.92,3.61977553]
[1747906274869,135.34,180.06,179.92,3.61977553]
[1747906275378,0.04116837,180.0,179.96,0.03537022]
[1747906276772,0.04116837,180.0,179.99,5.5548]
[1747906283881,0.04116837,180.0,179.99,9.15516383]
[1747906284275,6.837e-05,180.0,179.99,9.15516383]
[1747906286981,135.32,180.11,180.05,5.5528]
[1747906287674,135.32,180.11,180.0,135.3]
[1747906287979,0.03999964,180.07,180.04,0.03526271]
[1747906288981,5.59249964,180.07,180.04,0.03526271]
[1747906289486,5.553,180.05,180.04,0.03526271]
[1747906289676,0.03999964,180.07,180.04,0.03526271]
[1747906290084,5.5528,180.06,180.04,0.03526271]
[1747906290378,0.03999964,180.07,180.04,0.03526271]
[1747906290577,135.3,180.06,180.04,0.03526271]
[1747906290984,135.3,180.06,179.96,135.3]
[1747906291180,135.3,180.06,179.93,5.20405981]
[1747906291683,135.3,180.06,179.94,5.5561]
[1747906292078,0.04096633,180.02,179.98,0.03682163]
[1747906292273,5.5551,179.99,179.98,0.03682163]
[1747906292793,5.5551,179.99,179.87,16.23857756]
[1747906292794,5.56,179.99,179.87,140.50405981]
[1747906292981,135.3,180.01,179.87,140.50405981]
[1747906293182,240.86,180.01,179.88,3.60796808]
[1747906293386,5.5568,179.93,179.89,5.5577]
[1747906293686,0.03972626,179.93,179.89,0.03775271]
[1747906293878,5.5572,179.92,179.89,0.03775271]
[1747906294078,0.03972626,179.93,179.89,0.03775271]
[1747906295184,5.5572,179.92,179.89,0.03775271]
[1747906295382,0.03972626,179.93,179.89,0.03775271]
[1747906295694,5.5572,179.92,179.89,0.03775271]
[1747906296587,5.5573,179.91,179.89,0.03775271]
[1747906297089,5.557,179.92,179.89,0.03775271]
[1747906297386,0.03972626,179.93,179.89,0.03775271]
[1747906297590,5.59672626,179.93,179.89,5.59565271]
[1747906297785,0.03972626,179.93,179.89,0.03775271]
[1747906298280,0.03972626,179.93,179.79,5.20405981]
[1747906298281,5.59972626,179.93,179.79,5.20405981]
[1747906298481,146.11451775,179.95,179.79,5.20405981]
[1747906298782,146.11451775,179.95,179.81,5.5601]
[1747906299183,0.0401376,179.9,179.86,0.04005112]
[1747906299376,135.1,179.89,179.86,0.04005112]
[1747906300087,5.5585,179.87,179.86,0.04005112]
[1747906300888,5.5585,179.87,179.86,5.112e-05]
[1747906302180,11.1185,179.87,179.86,5.112e-05]
[1747906302381,5.561,179.8,179.73,135.1]
[1747906302577,135.14,179.83,179.75,5.5622]
[1747906302889,135.14,179.83,179.73,135.1]
[1747906303194,135.14,179.83,179.76,5.5617]
[1747906303385,0.04268336,179.81,179.78,0.03749778]
[1747906303891,5.5608,179.8,179.78,0.03749778]
[1747906304494,5.561,179.79,179.78,0.03749778]
[1747906305885,5.60338336,179.81,179.78,0.03749778]
[1747906306190,0.04268336,179.81,179.78,0.03749778]
[1747906306691,5.5608,179.8,179.78,0.03749778]
[1747906307691,0.04268336,179.81,179.78,0.03749778]
[1747906308794,0.04268336,179.81,179.78,5.59869778]
[1747906309185,5.60328336,179.81,179.78,0.03749778]
[1747906309387,0.04268336,179.81,179.78,0.03749778]
[1747906311396,0.04268336,179.81,179.79,5.561]
[1747906311900,0.04268336,179.81,179.78,0.03749778]
[1747906312195,0.04268336,179.81,179.78,5.59849778]
[1747906312797,0.04268336,179.81,179.78,0.03749778]
[1747906312993,0.04268336,179.81,179.79,5.5608]
[1747906314195,0.04268336,179.81,179.8,5.5607]
[1747906315203,0.04268336,179.81,179.79,5.5609]
[1747906316104,0.04268336,179.81,179.8,5.5607]
[1747906316304,0.04268336,179.81,179.78,0.03749778]
[1747906317801,0.04268336,179.81,179.8,5.5607]
[1747906318296,0.04268336,179.81,179.78,0.03749778]
[1747906319205,5.561,179.79,179.78,0.03749778]
[1747906319707,5.5608,179.8,179.78,0.03749778]
[1747906320903,5.5607,179.8,179.78,0.03749778]
[1747906321201,0.04268336,179.81,179.78,0.03749778]
[1747906321608,5.5607,179.8,179.78,0.03749778]
[1747906322106,0.04268336,179.81,179.78,0.03749778]
[1747906322407,5.5607,179.8,179.78,0.03749778]
[1747906322605,0.04268336,179.81,179.78,0.03749778]
[1747906322898,5.561,179.79,179.78,0.03749778]
[1747906323499,0.04268336,179.81,179.78,0.03749778]
[1747906323898,5.5608,179.8,179.78,0.03749778]
[1747906324799,0.04268336,179.81,179.78,0.03749778]
[1747906325094,0.04268336,179.81,179.8,5.5607]
[1747906325906,0.04268336,179.81,179.79,5.561]
[1747906326205,0.04268336,179.81,179.78,0.03749778]
[1747906326608,0.04268336,179.81,179.8,5.5607]
[1747906331916,0.04268336,179.81,179.78,0.03749778]
[1747906332411,0.04268336,179.81,179.79,5.5607]
[1747906332702,0.04268336,179.81,179.78,0.03749778]
[1747906333610,0.04268336,179.81,179.78,5.59879778]
[1747906333812,0.04268336,179.81,179.78,0.03749778]
[1747906334104,5.60328336,179.81,179.78,0.03749778]
[1747906334809,5.60328336,179.81,179.78,5.59879778]
[1747906335298,5.60328336,179.81,179.78,0.03749778]
[1747906335809,5.5607,179.8,179.78,0.03749778]
[1747906336011,0.04268336,179.81,179.78,0.03749778]
[1747906336213,135.12268336,179.81,179.78,0.03749778]
[1747906336411,5.561,179.79,179.78,0.03749778]
[1747906339614,5.5628,179.74,179.71,3.94611669]
[1747906339909,135.08,179.81,179.71,3.94611669]
[1747906340303,135.08,179.81,179.72,3.63567888]
[1747906340510,5.5619,179.76,179.75,0.04154418]
[1747906342008,0.04150948,179.78,179.75,5.60364418]
[1747906342918,0.04150948,179.78,179.76,5.5619]
[1747906343216,0.04150948,179.78,179.76,9.20108959]
[1747906343617,0.04150948,179.78,179.77,5.5616]
[1747906344416,0.04150948,179.78,179.77,9.20078959]
[1747906345221,135.1,179.85,179.82,5.5598]
[1747906345620,135.1,179.85,179.78,5.5611]
[1747906345925,135.1,179.85,179.77,3.63918959]
[1747906346117,5.5606,179.81,179.79,0.04060868]
[1747906346422,0.03830001,179.83,179.79,0.04060868]
[1747906346726,5.5605,179.81,179.79,0.04060868]
[1747906347219,5.5607,179.8,179.79,0.04060868]
[1747906349031,5.5607,179.8,179.79,3.69151728]
[1747906350627,5.5607,179.8,179.79,0.04060868]
[1747906354830,140.4407,179.8,179.79,0.04060868]
[1747906370135,5.5607,179.8,179.79,0.04060868]
[1747906380351,5.5604,179.81,179.79,0.04060868]
[1747906380856,5.5607,179.8,179.79,0.04060868]
[1747906381150,0.03830001,179.83,179.79,0.04060868]
[1747906381450,5.5601,179.82,179.79,0.04060868]
[1747906381650,0.03830001,179.83,179.79,0.04060868]
[1747906382051,5.5604,179.81,179.8,3.65388509]
[1747906382253,0.03830001,179.83,179.8,3.65388509]
[1747906383253,0.03830001,179.83,179.81,5.5601]
[1747906383453,0.03830001,179.83,179.8,3.65388509]
[1747906383752,0.03830001,179.83,179.81,3.65388509]
[1747906384854,0.03830001,179.83,179.79,0.04060868]
[1747906385152,5.5607,179.8,179.79,0.04060868]
[1747906389257,5.5607,179.8,179.79,8.68e-06]
[1747906392452,5.5606,179.81,179.79,8.68e-06]
[1747906392649,0.03830001,179.83,179.79,8.68e-06]
[1747906394558,5.5607,179.8,179.79,8.68e-06]
[1747906396355,5.5604,179.81,179.79,8.68e-06]
[1747906396753,0.03830001,179.83,179.79,8.68e-06]
[1747906396966,5.5607,179.8,179.79,8.68e-06]
[1747906397459,134.56,179.8,179.74,3.94611669]
[1747906398065,5.5622,179.75,179.74,3.94611669]
[1747906398565,0.04122225,179.76,179.73,0.04244998]
[1747906398861,5.5622,179.75,179.73,0.04244998]
[1747906399364,0.04122225,179.76,179.73,0.04244998]
[1747906399763,5.5622,179.75,179.74,3.65822175]
[1747906402462,5.5622,179.75,179.74,0.67478018]
[1747906402763,5.5625,179.74,179.73,0.04244998]
[1747906411166,5.5644,179.68,179.67,1.669e-05]
[1747906411462,134.58,179.74,179.67,1.669e-05]
[1747906411659,134.58,179.73,179.67,1.669e-05]
[1747906411857,11.1226,179.79,179.64,1.669e-05]
[1747906412061,5.60267394,179.73,179.7,0.04222503]
[1747906412264,5.60274295,179.73,179.7,0.03637423]
[1747906412965,0.03984295,179.73,179.72,5.5632]
[1747906413867,0.03984295,179.73,179.7,0.03637423]
[1747906414469,5.5633,179.72,179.7,0.03637423]
[1747906415467,5.5635,179.71,179.7,0.03637423]
[1747906416357,0.03984295,179.73,179.6,15.20405981]
[1747906416358,134.19984295,179.73,179.6,15.20405981]
[1747906416665,134.16,179.73,179.6,15.20405981]
[1747906417471,0.04248947,179.68,179.65,0.0370865]
[1747906417770,5.565,179.66,179.65,0.0370865]
[1747906419573,5.5648,179.67,179.65,0.0370865]
[1747906419872,0.04248947,179.68,179.65,0.0370865]
[1747906420278,5.60708947,179.68,179.65,0.0370865]
[1747906420975,5.565,179.66,179.65,0.0370865]
[1747906444310,5.565,179.66,179.65,8.65e-05]
[1747906444908,5.5666,179.61,179.6,10.0]
[1747906446207,0.04013267,179.62,179.6,15.56]
[1747906446416,397.7,179.75,179.6,15.56]
[1747906446600,397.7,179.75,179.64,5.5654]
[1747906446803,397.7,179.75,179.63,239.48]
[1747906447206,5.5646,179.68,179.63,239.48]
[1747906447511,0.03570189,179.67,179.64,0.03932774]
[1747906447711,0.04184083,179.67,179.64,0.04228089]
[1747906448413,0.04184083,179.67,179.65,5.5651]
[1747906449211,0.04184083,179.67,179.64,0.04228089]
[1747906449610,0.04184083,179.67,179.65,5.5651]
[1747906451518,0.04184083,179.67,179.64,5.60788089]
[1747906452215,0.04184083,179.67,179.65,5.5652]
[1747906452619,0.04184083,179.67,179.64,0.04228089]
[1747906452812,0.04184083,179.67,179.65,5.5653]
[1747906453118,5.60654083,179.67,179.64,0.04228089]
[1747906453418,0.04184083,179.67,179.64,5.60768089]
[1747906455021,5.60664083,179.67,179.64,5.60768089]
[1747906455822,0.04184083,179.67,179.64,5.60768089]
[1747906456619,5.60664083,179.67,179.64,5.60768089]
[1747906461021,5.60664083,179.67,179.64,0.04228089]
[1747906461220,0.04184083,179.67,179.64,0.04228089]
[1747906461823,5.5652,179.66,179.64,0.04228089]
[1747906462624,5.5653,179.65,179.64,0.04228089]
[1747906464224,5.5652,179.66,179.64,0.04228089]
[1747906464724,0.04184083,179.67,179.64,0.04228089]
[1747906464925,5.5653,179.65,179.64,0.04228089]
[1747906465627,5.5653,179.65,179.64,0.00818184]
[1747906466726,0.04184083,179.67,179.64,0.00818184]
[1747906467533,5.5653,179.65,179.64,0.00818184]
[1747906469529,5.5652,179.66,179.64,0.00818184]
[1747906470134,5.5653,179.65,179.64,0.00818184]
[1747906472826,0.04184083,179.67,179.64,0.00818184]
[1747906473337,5.5653,179.66,179.64,0.00818184]
[1747906473533,0.04184083,179.67,179.64,0.00818184]
[1747906474639,5.5653,179.65,179.64,0.00818184]
[1747906475437,5.5651,179.66,179.64,0.00818184]
[1747906476841,5.5653,179.65,179.64,0.00818184]
[1747906479135,0.04184083,179.67,179.64,0.00818184]
[1747906480142,0.04184083,179.67,179.65,3.63725286]
[1747906480940,5.60674083,179.67,179.65,3.63725286]
[1747906482838,5.60674083,179.67,179.66,3.63725286]
[1747906483346,0.04184083,179.67,179.66,3.63725286]
[1747906484250,5.60654083,179.67,179.66,3.63725286]
[1747906486355,5.60654083,179.67,179.64,5.57368184]
[1747906487456,0.04184083,179.67,179.65,5.5653]
[1747906487755,0.04184083,179.67,179.65,3.62824592]
[1747906488052,0.04184083,179.67,179.65,9.19344592]
[1747906488248,5.60664083,179.67,179.65,9.19344592]
[1747906488555,5.60664083,179.67,179.65,3.62824592]
[1747906489454,5.60664083,179.67,179.64,5.57368184]
[1747906489455,5.60664083,179.67,179.66,3.62824592]
[1747906490459,0.04184083,179.67,179.66,3.62824592]
[1747906493758,5.60654083,179.67,179.66,3.62824592]
[1747906494961,0.04184083,179.67,179.66,3.62824592]
[1747906496163,5.60654083,179.67,179.66,3.62824592]
[1747906496764,0.04184083,179.67,179.66,3.62824592]
[1747906499866,0.04184083,179.67,179.66,9.19324592]
[1747906500367,0.04184083,179.67,179.66,3.62824592]
[1747906500567,133.14,179.77,179.66,136.76824592]
[1747906501065,5.5637,179.71,179.68,4.49822777]
[1747906501467,5.60594683,179.71,179.68,10.09785673]
[1747906501768,5.60594683,179.71,179.68,5.59962896]
[1747906501962,5.60594683,179.71,179.69,5.564]
[1747906502773,0.04224683,179.71,179.69,5.564]
[1747906503167,0.04224683,179.71,179.68,5.59942896]
[1747906503368,5.60594683,179.71,179.68,5.59942896]
[1747906503662,0.04224683,179.71,179.68,5.59942896]
[1747906503868,5.60584683,179.71,179.68,5.59942896]
[1747906504068,0.04224683,179.71,179.69,5.564]
[1747906504372,0.04224683,179.71,179.68,0.03522896]
[1747906504671,0.04224683,179.71,179.69,3.61420759]
[1747906504870,5.60594683,179.71,179.69,3.61420759]
[1747906505372,0.04224683,179.71,179.69,3.61420759]
[1747906505866,5.5638,179.7,179.69,3.61420759]
[1747906506169,0.04224683,179.71,179.68,0.03522896]
[1747906506365,5.5638,179.7,179.68,0.03522896]
[1747906506769,0.04224683,179.71,179.68,0.03522896]
[1747906506770,5.5641,179.69,179.68,0.03522896]
[1747906507674,5.5638,179.7,179.68,0.03522896]
[1747906508971,5.5641,179.69,179.68,0.03522896]
[1747906509969,0.04224683,179.71,179.68,5.59952896]
[1747906510567,10.3029896,179.81,179.69,132.5]
[1747906510968,5.5625,179.75,179.71,5.5634]
[1747906511270,5.5625,179.75,179.69,132.5]
[1747906511472,10.3029896,179.82,179.69,132.5]
[1747906511765,0.03916133,179.77,179.75,5.562]
[1747906512367,0.03916133,179.77,179.74,0.03504568]
[1747906514176,5.5622,179.76,179.74,0.03504568]
[1747906516174,5.5622,179.75,179.74,0.03504568]
[1747906517271,5.564,179.7,179.68,4.01981332]
[1747906517570,132.5,179.77,179.68,4.01981332]
[1747906517775,132.5,179.77,179.68,5.5643]
[1747906517979,132.5,179.77,179.65,139.50672479]
[1747906518172,132.5,179.77,179.69,0.03785455]
[1747906518378,0.03753381,179.73,179.69,0.03785455]
[1747906519569,5.5638,179.71,179.69,0.03785455]
[1747906520180,5.5638,179.7,179.69,0.03785455]
[1747906529684,5.5638,179.7,179.69,0.0068363]
[1747906534381,138.0838,179.7,179.69,0.0068363]
[1747906535682,5.5638,179.7,179.69,0.0068363]
[1747906541088,5.5645,179.68,179.65,5.5653]
[1747906541787,5.5645,179.68,179.61,136.51981332]
[1747906541788,132.52,179.72,179.61,136.51981332]
[1747906542185,0.04197743,179.68,179.65,0.03929722]
[1747906542385,5.60657743,179.68,179.65,0.03929722]
[1747906542886,0.04197743,179.68,179.65,0.03929722]
[1747906543788,5.5647,179.67,179.65,5.60449722]
[1747906543991,0.04197743,179.68,179.65,0.03929722]
[1747906544191,5.565,179.66,179.65,0.03929722]
[1747906547195,5.565,179.66,179.65,9.722e-05]
[1747906547395,137.665,179.66,179.65,9.722e-05]
[1747906549597,5.5666,179.61,179.6,10.0]
[1747906549797,132.12,179.61,179.56,4.01981332]
[1747906549999,132.12,179.61,179.56,1.332e-05]
[1747906550191,5.5678,179.57,179.56,1.332e-05]
[1747906551994,5.5678,179.57,179.55,0.03513074]
[1747906552196,0.0361838,179.58,179.55,0.03513074]
[1747906552197,5.5681,179.56,179.55,0.03513074]
[1747906552897,0.0361838,179.58,179.45,132.14]
[1747906553197,139.16672479,179.6,179.45,132.14]
[1747906553594,139.16672479,179.6,179.46,3.58181655]
[1747906553797,0.04285255,179.55,179.51,0.03816155]
[1747906554094,5.5693,179.53,179.51,0.03816155]
[1747906554401,0.04285255,179.55,179.51,0.03816155]
[1747906556306,5.5692,179.53,179.51,0.03816155]
[1747906556703,5.5694,179.52,179.51,0.03816155]
[1747906557006,0.04285255,179.55,179.51,0.03816155]
[1747906557605,5.61155255,179.55,179.51,5.60756155]
[1747906559109,0.04285255,179.55,179.51,0.03816155]
[1747906561005,5.5693,179.52,179.51,0.03816155]
[1747906562605,5.5691,179.53,179.51,0.03816155]
[1747906562810,0.04285255,179.55,179.51,0.03816155]
[1747906563006,0.04285255,179.55,179.51,5.60776155]
[1747906563313,0.04285255,179.55,179.51,0.03816155]